bitfinex-derivatives/quotes_ETHF0:USTF0_20241231
["timestamp","ask_amount","ask_price","bid_price","bid_amount"]
[1735629364353,0.74548,3358.4,3357.9,3.2078]
[1735629364560,0.29822,3358.0,3357.9,3.2078]
[1735629367264,0.7456,3357.9,3357.3,0.9019]
[1735629367462,0.29828,3357.4,3357.2,0.4203]
[1735629367658,0.72839,3357.3,3357.2,0.71859]
[1735629367861,0.72839,3357.3,3357.2,40.8]
[1735629368061,0.4301,3357.3,3357.1,3.2078]
[1735629368266,0.29831,3357.0,3356.8,7.01251743]
[1735629368566,0.29831,3357.0,3356.8,47.81251743]
[1735629368764,0.29831,3357.0,3356.9,0.29832]
[1735629369060,0.29831,3357.0,3356.5,0.4454]
[1735629369061,3.43001177,3357.3,3356.5,0.4454]
[1735629369266,0.29834,3356.8,3356.7,0.29833]
[1735629370664,0.29834,3356.8,3356.7,41.09833]
[1735629371374,0.29834,3356.8,3356.7,40.8]
[1735629371673,0.29834,3356.8,3356.3,0.29837]
[1735629371674,0.29837,3356.4,3356.3,0.29837]
[1735629371965,0.29837,3356.4,3356.3,41.09837]
[1735629372865,0.29836,3356.5,3356.4,0.29836]
[1735629373766,2.25417177,3357.0,3356.3,40.8]
[1735629373969,3.2078,3357.2,3356.3,40.8]
[1735629373970,0.29833,3356.9,3356.8,0.29832]
[1735629374174,3.2078,3357.2,3356.6,3.2078]
[1735629374376,3.5061,3357.2,3357.1,0.2983]
[1735629374569,0.2983,3357.2,3357.1,0.2983]
[1735629374874,0.4301,3357.3,3357.2,0.29829]
[1735629375176,0.29828,3357.5,3357.4,0.29827]
[1735629376472,0.29826,3357.6,3357.5,0.29826]
[1735629376777,0.29825,3357.8,3357.7,0.29824]
[1735629377177,0.4255,3358.1,3357.5,1.3525]
[1735629377373,0.29821,3358.2,3358.1,0.29821]
[1735629377977,2.69657177,3358.5,3358.2,0.29819]
[1735629377978,0.2982,3358.3,3358.2,0.29819]
[1735629378477,0.29821,3358.2,3358.1,0.29821]
[1735629379580,2.69657177,3358.5,3357.8,3.2078]
[1735629379874,0.29822,3358.1,3358.0,0.29822]
[1735629380574,0.29823,3358.0,3357.9,0.29822]
[1735629381371,0.29823,3357.9,3357.8,3.50604]
[1735629381774,0.29823,3357.9,3357.8,3.2078]
[1735629382476,0.29823,3357.9,3357.8,3.50604]
[1735629383682,0.29823,3357.9,3357.8,0.29824]
[1735629384674,2.25417177,3358.2,3357.7,3.2078]
[1735629384981,0.29822,3358.1,3358.0,0.29822]
[1735629385371,0.29822,3358.1,3357.7,3.2078]
[1735629385372,2.55238177,3358.2,3358.1,0.29821]
[1735629385576,0.2982,3358.3,3358.2,0.29821]
[1735629386387,5.90437177,3358.5,3358.3,0.29819]
[1735629386388,0.2982,3358.4,3358.3,0.29819]
[1735629387684,0.2982,3358.4,3357.8,0.74561]
[1735629387685,0.29821,3358.3,3358.2,0.2982]
[1735629391786,0.29821,3358.3,3358.2,0.7397]
[1735629392479,0.29818,3358.5,3358.4,0.29819]
[1735629392688,2.25417177,3358.8,3358.3,0.4395]
[1735629392986,0.29817,3358.7,3358.6,0.29816]
[1735629393906,0.7453,3359.2,3358.3,0.4395]
[1735629393907,2.25417177,3359.5,3358.5,3.2078]
[1735629394091,0.29813,3359.1,3359.0,0.29812]
[1735629395988,0.29813,3359.1,3358.9,0.44]
[1735629396286,0.29813,3359.0,3358.9,0.73813]
[1735629399387,2.25417177,3359.0,3357.7,13.94032648]
[1735629399586,0.4517,3358.9,3358.5,4.4983]
[1735629399892,0.74985,3358.9,3358.8,0.29815]
[1735629400991,0.74985,3358.9,3358.5,4.4983]
[1735629400992,0.4517,3358.9,3358.5,4.4983]
[1735629401195,0.29817,3358.6,3358.5,4.79648]
[1735629401394,0.29817,3358.6,3358.5,4.37158]
[1735629405393,0.29817,3358.6,3358.5,4.0734]
[1735629405589,0.29817,3358.6,3358.5,3.94618]
[1735629408491,0.29817,3358.6,3358.5,3.648]
[1735629408693,0.29817,3358.6,3358.5,3.2078]
[1735629408900,2.25417177,3358.7,3358.3,40.8]
[1735629409092,2.55236177,3358.4,3358.3,40.8]
[1735629409791,2.55236177,3358.4,3358.1,0.29821]
[1735629410098,0.29821,3358.1,3358.0,3.2078]
[1735629410295,0.29821,3358.1,3358.0,3.50602]
[1735629410500,0.29821,3358.1,3358.0,44.30602]
[1735629410893,0.4447,3358.3,3358.0,3.2078]
[1735629411099,0.29819,3358.6,3358.5,0.29817]
[1735629411302,0.74269,3358.6,3358.5,0.29817]
[1735629411600,3.2078,3358.8,3358.7,0.29816]
[1735629411999,3.50595,3358.8,3358.7,41.09816]
[1735629413098,3.2078,3358.8,3358.7,41.09816]
[1735629413596,0.29815,3358.9,3358.8,0.29814]
[1735629418703,2.25417177,3359.0,3358.6,40.8]
[1735629418897,2.55232177,3359.0,3358.9,0.29814]
[1735629419093,0.29815,3359.0,3358.9,0.29814]
[1735629419397,2.55232177,3359.0,3358.9,0.29814]
[1735629421801,2.55232177,3359.0,3358.4,3.2078]
[1735629421802,5.46197177,3359.0,3358.4,3.2078]
[1735629422000,0.29819,3358.5,3358.4,0.29819]
[1735629422200,0.29819,3358.4,3358.3,5.39260325]
[1735629422398,0.29818,3358.5,3358.4,0.29818]
[1735629428307,0.4196,3358.6,3358.3,0.4184]
[1735629428511,2.25417177,3358.7,3358.6,0.29817]
[1735629428710,0.29815,3358.9,3358.3,1.1639]
[1735629428711,5.46197177,3359.0,3358.9,0.29814]
[1735629429412,5.76010177,3359.0,3358.9,0.29814]
[1735629429711,5.46197177,3359.0,3358.9,0.29814]
[1735629429912,5.46197177,3359.0,3358.9,0.72234]
[1735629430311,2.25417177,3359.0,3358.9,0.72234]
[1735629432606,2.25417177,3359.3,3359.2,0.29812]
[1735629432911,2.25417177,3359.6,3359.5,0.29809]
[1735629433108,0.29807,3359.8,3359.7,0.29806]
[1735629433313,2.55224177,3359.8,3359.7,0.29806]
[1735629438715,0.29811,3359.4,3359.3,0.2981]
[1735629438922,2.55228177,3359.4,3359.3,0.2981]
[1735629439119,2.25417177,3359.4,3359.3,0.2981]
[1735629440121,2.25417177,3359.7,3359.1,0.4277]
[1735629440424,2.25417177,3359.7,3359.6,0.29808]
[1735629441419,2.25417177,3359.7,3359.6,0.71958]
[1735629443422,2.25417177,3360.0,3359.6,0.4215]
[1735629443619,2.25417177,3360.0,3359.9,0.29805]
[1735629445119,2.55222177,3360.0,3359.9,0.29805]
[1735629445717,2.25417177,3360.0,3359.9,0.29805]
[1735629446931,2.55222177,3360.0,3359.9,0.29805]
[1735629447720,2.55222177,3360.0,3359.7,0.4375]
[1735629447721,0.29806,3359.9,3359.8,0.29806]
[1735629448224,0.29806,3359.9,3359.4,3.92999]
[1735629448225,0.29809,3359.5,3359.4,3.92999]
[1735629448529,0.29809,3359.5,3359.3,0.2981]
[1735629448530,2.25417177,3359.5,3359.3,0.2981]
[1735629448820,2.25417177,3359.5,3359.2,4.97412325]
[1735629448821,0.29811,3359.3,3359.2,4.97412325]
[1735629449222,2.25417177,3359.5,3359.3,0.2981]
[1735629449223,0.2981,3359.4,3359.3,0.2981]
[1735629449724,0.29811,3359.4,3359.3,0.2981]
[1735629449926,2.25417177,3359.5,3359.1,0.4377]
[1735629450119,2.25417177,3359.5,3359.4,0.2981]
[1735629450320,2.55226177,3359.5,3359.4,0.2981]
[1735629452023,2.25417177,3359.8,3359.4,0.2981]
[1735629452225,2.55224177,3359.8,3359.7,0.29806]
[1735629453024,0.29807,3359.8,3359.7,0.29806]
[1735629453323,3.6241,3359.9,3359.8,0.29806]
[1735629453526,3.92215,3359.9,3359.8,0.29806]
[1735629455925,0.71435,3359.9,3359.8,0.29806]
[1735629462129,2.96852177,3359.9,3359.8,0.29806]
[1735629468230,2.55222177,3359.9,3359.8,0.29806]
[1735629468533,0.29805,3359.9,3359.8,0.29806]
[1735629468928,3.2078,3360.3,3359.9,0.74514]
[1735629469134,3.50582,3360.3,3360.2,0.29803]
[1735629476642,3.50582,3360.3,3359.7,4.97407325]
[1735629476643,0.29806,3359.8,3359.7,4.97407325]
[1735629477038,2.55223177,3359.9,3359.8,0.29806]
[1735629477646,0.29806,3359.9,3359.8,0.29806]
[1735629478734,0.29806,3360.0,3359.9,0.29804]
[1735629484852,0.4207,3360.3,3359.8,0.74516]
[1735629485055,0.29802,3360.3,3360.2,0.29802]
[1735629485254,5.75999177,3360.4,3360.3,0.29802]
[1735629485656,3.2078,3360.4,3360.3,0.29802]
[1735629485950,3.2078,3360.8,3360.7,0.29798]
[1735629487948,3.50577,3360.8,3360.7,0.29798]
[1735629488746,3.2078,3360.8,3360.7,0.29798]
[1735629489744,3.50577,3360.8,3360.7,0.29798]
[1735629489956,0.29797,3360.8,3360.7,0.29798]
[1735629490853,0.29797,3360.8,3360.6,0.74759]
[1735629491247,0.29797,3360.8,3360.6,0.4496]
[1735629491552,0.29797,3360.8,3360.7,0.29798]
[1735629491752,0.29798,3360.7,3360.6,0.74759]
[1735629499657,0.29798,3360.7,3360.6,0.4496]
[1735629499860,0.29799,3360.6,3360.5,0.4444]
[1735629500161,0.29801,3360.4,3360.3,3.2078]
[1735629500862,0.29804,3360.1,3360.0,45.89181325]
[1735629501457,0.29804,3360.1,3360.0,41.2158]
[1735629501657,0.29804,3360.1,3360.0,41.51385]
[1735629502555,0.29804,3360.1,3360.0,41.2158]
[1735629502758,0.29805,3360.0,3359.9,0.29805]
[1735629502960,0.4249,3360.0,3359.9,0.29805]
[1735629503262,0.29804,3360.1,3360.0,0.29805]
[1735629512370,1.36307166,3360.1,3360.0,0.29805]
[1735629515976,0.4249,3360.3,3359.8,50.20594491]
[1735629516171,1.36303166,3360.6,3360.5,0.29799]
[1735629516477,0.427,3360.7,3359.8,49.14091325]
[1735629516478,0.29799,3360.7,3360.3,0.74505]
[1735629516673,1.36302166,3360.7,3360.6,0.29799]
[1735629517074,1.06503166,3360.7,3360.6,0.29799]
[1735629517575,1.36301166,3360.7,3360.6,0.29799]
[1735629518374,0.29798,3360.7,3360.6,0.29799]
[1735629522677,0.298,3360.5,3360.4,3.6395]
[1735629522977,0.298,3360.5,3360.4,3.93751]
[1735629524169,0.29799,3360.7,3360.6,0.29798]
[1735629525482,0.74494,3360.9,3360.4,3.6395]
[1735629525677,0.298,3360.6,3360.5,0.298]
[1735629529284,2.24911551,3360.8,3360.3,0.9055]
[1735629529479,2.24911551,3360.8,3360.2,4.67601325]
[1735629529480,0.29802,3360.3,3360.2,4.67601325]
[1735629531381,0.29802,3360.3,3360.0,3.50584]
[1735629531382,0.29804,3360.1,3360.0,3.50584]
[1735629534283,0.29804,3360.1,3360.0,0.29804]
[1735629536483,2.24911551,3360.2,3359.9,0.9084]
[1735629536679,2.24911551,3360.2,3359.7,3.2078]
[1735629536993,0.29807,3359.7,3359.6,4.67601325]
[1735629537883,0.29809,3359.5,3359.4,41.5535]
[1735629538789,0.29809,3359.5,3359.4,41.2554]
[1735629538983,0.29809,3359.5,3359.4,41.5535]
[1735629539383,0.29809,3359.5,3359.4,41.2554]
[1735629539692,0.29809,3359.5,3359.4,41.5535]
[1735629540282,0.29809,3359.5,3359.4,41.2554]
[1735629540989,0.29809,3359.5,3359.4,41.5535]
[1735629542084,0.29809,3359.5,3359.4,40.8]
[1735629542391,0.29809,3359.5,3359.3,3.2078]
[1735629542392,0.2981,3359.4,3359.3,3.2078]
[1735629543685,0.2981,3359.4,3359.3,3.50591]
[1735629544490,0.2981,3359.4,3359.3,0.29811]
[1735629544690,0.2981,3359.4,3359.3,0.73261]
[1735629547090,0.2981,3359.4,3359.3,0.4345]
[1735629547392,0.29812,3359.2,3359.1,0.73112]
[1735629549592,0.29812,3359.3,3359.2,0.2981]
[1735629549792,2.66421551,3359.6,3359.1,0.433]
[1735629550094,0.2981,3359.4,3359.3,0.29809]
[1735629550294,2.24911551,3359.6,3359.3,3.2078]
[1735629550494,2.54720551,3359.6,3359.5,0.29809]
[1735629550894,2.54720551,3359.6,3359.5,0.75159]
[1735629551101,2.54720551,3359.6,3359.5,0.4535]
[1735629551494,2.54720551,3359.6,3359.5,0.75159]
[1735629554396,0.29809,3359.6,3359.5,0.75159]
[1735629554703,0.74514,3360.0,3359.5,0.75159]
[1735629554704,0.29806,3360.0,3359.9,0.29805]
[1735629555298,2.24911551,3360.1,3359.7,3.2078]
[1735629555494,0.29806,3359.9,3359.8,0.29806]
[1735629555803,2.24911551,3360.1,3359.7,3.2078]
[1735629556004,2.24911551,3360.1,3359.9,0.29805]
[1735629556005,0.29806,3360.0,3359.9,0.29805]
[1735629558202,2.24911551,3360.1,3359.7,3.2078]
[1735629558400,2.54717551,3359.8,3359.7,0.29807]
[1735629558897,0.29806,3359.8,3359.7,0.29807]
[1735629560899,2.24911551,3359.8,3359.6,0.4159]
[1735629561095,0.29807,3359.7,3359.6,0.4159]
[1735629561607,0.29807,3359.7,3359.6,0.71398]
[1735629562402,0.29807,3359.7,3359.6,0.4159]
[1735629562908,0.2981,3359.4,3359.3,3.2078]
[1735629563105,0.29811,3359.3,3359.2,0.4479]
[1735629564503,0.29811,3359.3,3359.2,0.74602]
[1735629565507,0.29813,3359.0,3358.9,3.50594]
[1735629567014,0.29813,3359.0,3358.9,3.95594]
[1735629567311,0.29813,3359.0,3358.9,3.6578]
[1735629568312,0.29813,3359.0,3358.9,3.95594]
[1735629569814,0.29813,3359.0,3358.9,3.6578]
[1735629571719,0.29813,3359.0,3358.9,3.95594]
[1735629572909,0.29813,3359.0,3358.9,4.38264]
[1735629574213,1.36385097,3359.0,3358.9,4.38264]
[1735629575516,1.36385097,3359.0,3358.9,3.2078]
[1735629577323,0.29814,3358.9,3358.8,41.09815]
[1735629579116,0.29814,3358.9,3358.8,40.8]
[1735629579523,0.29814,3358.9,3358.8,41.09815]
[1735629587819,1.36386097,3359.0,3358.9,0.29814]
[1735629588124,1.06572097,3359.1,3359.0,0.29813]
[1735629589521,1.06572097,3359.3,3359.0,4.68054834]
[1735629589726,1.06572097,3359.3,3359.2,3.50592]
[1735629591429,1.06572097,3359.3,3359.2,9.63416982]
[1735629592128,0.29807,3359.8,3359.7,0.29806]
[1735629592425,1.36379097,3359.8,3359.7,0.29806]
[1735629598731,1.36379097,3359.8,3359.4,3.2078]
[1735629598732,1.06572097,3359.8,3359.4,3.2078]
[1735629598934,0.29809,3359.6,3359.5,0.29808]
[1735629599137,1.36381097,3359.6,3359.5,0.29808]
[1735629600844,0.29809,3359.5,3359.4,3.50589]
[1735629601244,0.29809,3359.5,3359.4,3.2078]
[1735629601442,0.72329,3359.5,3359.4,3.2078]
[1735629601835,1.17509,3359.5,3359.4,3.2078]
[1735629603643,1.78901097,3359.5,3359.4,3.5059]
[1735629604646,1.06572097,3359.5,3359.4,3.5059]
[1735629605947,1.36381097,3359.5,3359.4,3.5059]
[1735629609351,0.29809,3359.6,3359.5,0.29809]
[1735629611254,1.36381097,3359.6,3359.5,0.29809]
[1735629611854,0.29809,3359.5,3359.4,3.96619]
[1735629612251,0.29809,3359.5,3359.4,3.2078]
[1735629613345,0.29809,3359.5,3359.2,4.67503954]
[1735629613346,1.06572097,3359.6,3359.2,4.67503954]
[1735629613551,0.29811,3359.3,3359.2,4.67503954]
[1735629614956,2.39032097,3359.4,3359.1,0.4522]
[1735629615154,1.36384097,3359.2,3359.1,0.4522]
[1735629617062,0.73501,3359.4,3359.3,0.29811]
[1735629617263,1.80073097,3359.4,3359.3,0.29811]
[1735629618061,1.80073097,3359.4,3359.2,0.74391]
[1735629618062,0.29811,3359.3,3359.2,0.74391]
[1735629618761,0.29811,3359.3,3359.2,0.29811]
[1735629618960,0.29812,3359.2,3359.1,0.75032]
[1735629619161,1.36384097,3359.2,3359.1,0.75032]
[1735629621658,1.06572097,3359.2,3359.1,0.75032]
[1735629621966,1.36384097,3359.2,3359.1,0.75032]
[1735629622165,1.06572097,3359.2,3359.1,0.75032]
[1735629623060,1.06572097,3359.2,3359.1,5.42535954]
[1735629623963,1.06572097,3359.2,3359.1,0.75032]
[1735629625365,1.06572097,3359.2,3359.1,5.42535954]
[1735629627564,1.36384097,3359.2,3359.1,5.42535954]
[1735629629761,1.36384097,3359.2,3359.1,5.12723954]
[1735629629961,1.36384097,3359.2,3359.1,0.75033]
[1735629630157,1.36384097,3359.2,3359.1,0.4522]
[1735629630667,1.36384097,3359.2,3359.1,0.75033]
[1735629631566,1.36384097,3359.2,3359.1,0.4522]
[1735629635463,1.06572097,3359.2,3359.1,0.75033]
[1735629637167,1.06572097,3359.2,3359.1,41.55033]
[1735629637466,1.06572097,3359.5,3359.4,0.2981]
[1735629637862,1.06572097,3359.5,3359.4,1.1369]
[1735629638572,1.06572097,3359.5,3359.4,7.27344099]
[1735629639169,1.36381097,3359.5,3359.4,7.27344099]
[1735629640267,1.06572097,3359.5,3359.4,7.27344099]
[1735629640966,1.06572097,3359.5,3359.4,5.81944964]
[1735629642074,1.06572097,3359.5,3359.4,1.1369]
[1735629642870,1.06572097,3359.5,3359.4,14.28955332]
[1735629643768,1.06572097,3359.5,3359.4,7.26883966]
[1735629644168,0.4365,3360.0,3359.4,6.97073966]
[1735629644470,0.29803,3360.2,3360.1,0.29803]
[1735629645176,0.4501,3360.4,3360.0,40.8]
[1735629645177,0.29804,3360.1,3360.0,40.8]
[1735629645363,0.29804,3360.1,3360.0,41.09805]
[1735629646282,1.36376097,3360.1,3360.0,41.09805]
[1735629647077,1.36376097,3360.1,3360.0,0.29805]
[1735629648578,1.06572097,3360.1,3359.9,0.8613]
[1735629648780,1.06572097,3360.1,3359.9,0.4276]
[1735629648781,0.29805,3360.0,3359.9,0.4276]
[1735629648982,0.29805,3360.0,3359.9,0.72565]
[1735629650087,1.36376097,3360.1,3360.0,0.29805]
[1735629650777,1.06572097,3360.1,3359.9,0.4276]
[1735629650978,0.29805,3360.0,3359.9,0.72565]
[1735629654678,1.06572097,3360.1,3359.9,0.4276]
[1735629654880,1.36376097,3360.1,3360.0,0.29805]
[1735629656787,0.29805,3360.0,3359.9,0.4276]
[1735629657383,0.29805,3360.0,3359.9,0.72565]
[1735629659480,0.29805,3359.9,3359.8,0.4255]
[1735629659788,1.36377097,3359.9,3359.8,0.4255]
[1735629659990,1.36377097,3359.9,3359.7,4.67927546]
[1735629659991,0.29807,3359.7,3359.6,44.4539]
[1735629660191,0.29807,3359.7,3359.6,3.2078]
[1735629660192,1.36379097,3359.7,3359.6,3.2078]
[1735629661082,1.36379097,3359.7,3359.5,45.77736546]
[1735629661287,0.29808,3359.6,3359.5,41.09809]
[1735629662885,0.29808,3359.6,3359.5,40.8]
[1735629662886,0.74578,3359.6,3359.5,40.8]
[1735629663085,1.20328,3359.6,3359.5,40.8]
[1735629663382,0.29809,3359.5,3359.4,4.67927546]
[1735629663584,1.36381097,3359.5,3359.4,4.67927546]
[1735629663787,1.06572097,3359.5,3359.4,40.8]
[1735629663998,1.36381097,3359.5,3359.4,40.8]
[1735629664196,0.29812,3359.2,3359.1,7.88707546]
[1735629664382,1.36384097,3359.2,3359.1,7.88707546]
[1735629664590,1.36384097,3359.2,3359.1,48.68707546]
[1735629664893,1.36384097,3359.2,3359.1,44.0078]
[1735629665082,1.36384097,3359.2,3359.1,3.2078]
[1735629665283,1.06572097,3359.2,3359.0,0.4573]
[1735629665492,0.75373,3359.1,3359.0,0.4573]
[1735629665699,0.75373,3359.1,3359.0,41.2573]
[1735629665986,1.06572097,3359.2,3359.1,0.29813]
[1735629666295,1.06572097,3359.4,3359.3,0.29811]
[1735629666795,1.06572097,3359.4,3359.3,41.09811]
[1735629668188,0.29807,3359.8,3359.7,0.29807]
[1735629668488,0.29807,3359.8,3359.3,41.09811]
[1735629668489,0.4458,3360.1,3359.5,3.2078]
[1735629668682,1.06572097,3359.8,3359.7,0.29807]
[1735629670295,0.29806,3359.9,3359.8,0.29806]
[1735629671992,0.29807,3359.8,3359.7,0.29807]
[1735629673893,0.29806,3359.9,3359.5,3.6666]
[1735629674100,0.29806,3359.9,3359.8,0.29806]
[1735629675301,2.25033426,3360.0,3359.5,3.6666]
[1735629675494,2.54838426,3360.0,3359.9,0.29805]
[1735629676603,0.29806,3359.9,3359.8,0.29805]
[1735629676905,2.54838426,3360.0,3359.9,0.29805]
[1735629678398,0.29806,3359.9,3359.8,0.29805]
[1735629679418,0.29806,3359.9,3359.7,0.4143]
[1735629679419,2.25033426,3360.0,3359.7,0.4143]
[1735629679717,0.29807,3359.8,3359.7,0.29806]
[1735629679911,0.29807,3359.8,3359.7,0.71826]
[1735629680312,2.25033426,3360.0,3359.7,0.4202]
[1735629680513,0.29806,3359.9,3359.8,0.29806]
[1735629681116,0.29806,3359.9,3359.8,0.71626]
[1735629681306,2.25033426,3360.3,3359.8,0.4182]
[1735629681510,0.29804,3360.2,3360.1,0.29803]
[1735629683012,0.29805,3360.0,3359.9,0.29805]
[1735629683814,0.29805,3359.9,3359.8,8.60333546]
[1735629684411,0.29805,3359.9,3359.8,3.92406]
[1735629685309,0.29805,3359.9,3359.8,3.626]
[1735629685516,0.29805,3359.9,3359.8,3.92406]
[1735629685709,0.29805,3359.9,3359.8,3.626]
[1735629686022,0.29805,3359.9,3359.8,0.4182]
[1735629686214,2.67673426,3360.0,3359.7,4.67927546]
[1735629686215,3.13043426,3360.0,3359.7,4.67927546]
[1735629686415,0.29807,3359.7,3359.6,4.67927546]
[1735629686619,2.54840426,3359.7,3359.6,4.67927546]
[1735629687523,0.29809,3359.5,3359.4,7.88707546]
[1735629688219,1.19539,3359.5,3359.4,7.88707546]
[1735629688918,1.19539,3359.5,3359.4,3.2078]
[1735629693024,0.75039,3359.5,3359.4,0.2981]
[1735629693226,0.29809,3359.5,3359.4,0.2981]
[1735629693630,0.29809,3359.5,3359.4,0.7309]
[1735629694217,1.36350961,3359.5,3359.4,0.7309]
[1735629694423,1.06541961,3359.5,3359.4,0.7309]
[1735629694621,0.74677,3359.8,3359.7,0.29807]
[1735629694826,1.36348961,3359.8,3359.7,0.29807]
[1735629695924,3.6388,3360.2,3359.7,0.74518]
[1735629695925,0.72903,3360.2,3359.7,0.74518]
[1735629696228,0.29803,3360.2,3360.1,0.29804]
[1735629697131,0.29805,3360.1,3360.0,0.29803]
[1735629700034,0.29805,3360.0,3359.9,1.16925]
[1735629702737,0.29805,3360.0,3359.9,0.4348]
[1735629705030,0.29805,3360.0,3359.9,0.73285]
[1735629713739,0.29805,3360.0,3359.9,0.4348]
[1735629713940,0.29806,3359.8,3359.7,5.42544546]
[1735629714140,0.29806,3359.8,3359.7,5.12737546]
[1735629714639,0.29806,3359.8,3359.7,5.42544546]
[1735629714941,0.29806,3359.8,3359.7,5.12737546]
[1735629715541,0.29806,3359.8,3359.7,0.4481]
[1735629716630,0.8902,3359.9,3359.4,7.88707546]
[1735629716631,3.14015465,3359.9,3359.4,7.88707546]
[1735629716837,0.29809,3359.5,3359.4,7.88707546]
[1735629717639,0.29809,3359.5,3359.4,3.2078]
[1735629718843,0.29809,3359.5,3359.4,3.5059]
[1735629719239,0.29809,3359.5,3359.4,3.2078]
[1735629720835,0.29809,3359.5,3359.2,41.674]
[1735629721040,1.36348366,3359.3,3359.2,41.674]
[1735629721239,1.36348366,3359.3,3359.2,41.97212]
[1735629721746,1.36348366,3359.3,3359.2,41.674]
[1735629722649,1.36348366,3359.3,3359.2,41.97212]
[1735629723034,1.36348366,3359.3,3359.2,40.8]
[1735629723651,1.36348366,3359.3,3359.2,41.09812]
[1735629726748,1.36348366,3359.3,3359.2,40.8]
[1735629727144,1.36348366,3359.3,3359.2,41.09812]
[1735629727952,1.36348366,3359.3,3359.2,40.8]
[1735629728148,1.49016,3360.3,3359.2,40.8]
[1735629728443,1.49016,3360.3,3359.8,0.29806]
[1735629728444,0.29807,3359.9,3359.8,0.29806]
[1735629728847,1.06537366,3360.1,3359.7,3.2078]
[1735629729045,1.36341366,3360.1,3360.0,0.29805]
[1735629731954,0.29806,3359.9,3359.8,0.29805]
[1735629732154,1.36343366,3359.9,3359.8,0.29805]
[1735629732354,0.29806,3359.9,3359.8,0.29805]
[1735629735056,2.25012889,3360.3,3359.7,3.2078]
[1735629735282,0.29805,3360.1,3360.0,0.29804]
[1735629735449,0.29805,3360.1,3359.7,3.2078]
[1735629735450,0.29803,3360.2,3360.1,0.29802]
[1735629738651,0.29805,3360.0,3359.9,7.88707546]
[1735629738857,0.29804,3360.1,3359.9,7.88707546]
[1735629739058,0.29804,3360.1,3360.0,0.29803]
[1735629741155,2.25012889,3360.6,3360.3,0.29801]
[1735629741361,0.298,3360.6,3360.5,0.29799]
[1735629741758,0.298,3360.6,3360.5,0.71489]
[1735629741956,0.298,3360.6,3360.5,41.51489]
[1735629742359,0.298,3360.6,3360.5,0.71489]
[1735629743361,3.2078,3360.7,3360.5,0.4169]
[1735629743665,3.50579,3360.7,3360.6,0.29799]
[1735629745966,3.2078,3360.7,3360.4,0.4582]
[1735629746167,0.298,3360.5,3360.4,0.75621]
[1735629746559,0.298,3360.6,3360.5,0.298]
[1735629746763,3.2078,3360.7,3360.6,0.29799]
[1735629751364,0.4322,3360.8,3360.5,0.4584]
[1735629751568,0.4322,3360.8,3360.7,0.29798]
[1735629752163,0.73017,3360.8,3360.7,0.29798]
[1735629753564,0.4322,3360.8,3360.7,0.29798]
[1735629753764,0.431,3361.1,3360.6,0.4475]
[1735629753972,3.2078,3361.2,3360.6,0.4475]
[1735629754171,3.2078,3361.2,3361.1,0.29795]
[1735629754366,3.50574,3361.2,3361.1,0.29795]
[1735629754670,3.50574,3361.2,3361.1,41.09795]
[1735629754970,3.50574,3361.2,3361.1,0.29795]
[1735629755468,3.50574,3361.2,3361.1,41.09795]
[1735629757857,3.50574,3361.2,3361.1,40.8]
[1735629758064,3.95267,3361.2,3360.3,5.42431546]
[1735629758270,0.29798,3360.9,3360.8,0.29797]
[1735629759065,0.4495,3361.0,3360.5,0.745]
[1735629759270,0.74746,3361.0,3360.9,0.29797]
[1735629759567,0.29796,3361.0,3360.9,0.29797]
[1735629761066,0.29798,3360.9,3360.8,0.29797]
[1735629762676,0.29798,3360.8,3360.7,0.29798]
[1735629762973,2.54810889,3360.8,3360.7,0.29798]
[1735629768292,2.25012889,3360.8,3360.7,0.29798]
[1735629768692,2.54809889,3360.8,3360.7,0.29798]
[1735629770493,2.25012889,3360.8,3360.7,0.29798]
[1735629774294,1.06476735,3360.8,3360.7,0.29798]
[1735629777591,3.2078,3361.0,3360.9,0.29797]
[1735629777893,4.27256735,3361.0,3360.9,0.29797]
[1735629778600,4.27256735,3361.0,3360.9,41.09797]
[1735629778891,1.06476735,3361.0,3360.9,41.09797]
[1735629781099,1.06476735,3361.0,3360.9,0.29797]
[1735629781393,1.06476735,3361.0,3360.9,41.09797]
[1735629783398,1.06476735,3361.0,3360.9,0.29797]
[1735629788105,5.3373347,3361.0,3360.7,4.67927546]
[1735629788305,1.36273735,3360.8,3360.7,4.97724546]
[1735629789199,1.36273735,3360.8,3360.7,0.29797]
[1735629791096,1.06476735,3360.8,3360.7,0.29797]
[1735629791504,1.36273735,3360.8,3360.7,0.29797]
[1735629792291,1.06476735,3360.8,3360.7,0.29797]
[1735629793195,3.50576,3361.0,3360.9,0.29797]
[1735629793394,4.27256735,3361.0,3360.9,0.29797]
[1735629794106,4.27256735,3361.0,3360.9,1.19237]
[1735629798611,4.57052735,3361.0,3360.9,1.19237]
[1735629799814,0.29797,3360.9,3360.8,0.29797]
[1735629800114,0.74637,3360.9,3360.8,0.29797]
[1735629800315,1.19357,3360.9,3360.8,0.29797]
[1735629802818,0.74637,3360.9,3360.8,0.29797]
[1735629805020,0.74637,3360.9,3360.8,41.09797]
[1735629807512,0.29798,3360.7,3360.6,4.67927546]
[1735629807715,1.36274735,3360.7,3360.6,4.67927546]
[1735629808114,1.36274735,3360.7,3360.4,7.31692319]
[1735629808115,1.06476735,3360.7,3360.5,40.8]
[1735629808314,2.20965735,3360.6,3360.5,41.098]
[1735629808513,2.20965735,3360.6,3360.5,0.298]
[1735629810518,1.78075735,3360.6,3360.5,0.298]
[1735629810719,1.36275735,3360.6,3360.5,0.298]
[1735629812223,1.06476735,3360.6,3360.4,40.8]
[1735629812525,0.298,3360.5,3360.4,41.09801]
[1735629812824,0.298,3360.5,3360.4,40.8]